Cogmind - Beta 17 @@@ ROGUE MODE // 2026.08.17 @ 17:07:07 Player: Lazz Result: Destroyed by H-61 Shepherd with Heavy Assault Cannon Performance ------------- Evolutions (2) 1000 Regions Visited (5) 1000 Robots Destroyed (34) 170 Value Destroyed (1011) 1011 Prototype IDs (1) 20 Alien Tech Used (0) 0 Bonus (0) 0 TOTAL SCORE: 3201 Bonus ------- None Cogmind --------- Core Integrity 0/550 Matter 264/300 Energy 95/100 System Corruption 0% Temperature Cool (0) Movement Core (1400) Ox27 Location -8/Materials Parts ------- > --- POWER (1) -------- (None) > --- PROPULSION (5) --- (None) > --- UTILITY (3) ------ Improved Heat Sink Huge Storage Unit Improved Targeting Computer > --- WEAPON (2) ------- Light Assault Rifle > --- INVENTORY (25) --- Ion Engine Light Treads Large Matter Pod (150) Improved Terrain Scanner Seismic Detector Seismic Detector Improved Targeting Computer Improved Targeting Computer Improved Targeting Computer Improved Targeting Computer Particle Charger Improved Light Armor Plating Insulated Plating Insulated Plating Insulated Plating Insulated Plating Hardlight Generator Light Assault Rifle Rocket Launcher Mining Laser Peak State ------------ > --- POWER ------------ Improved Ion Engine > --- PROPULSION ------- Light Treads Light Treads Light Treads Light Treads Improved Carbon-fiber Leg > --- UTILITY ---------- Improved Heat Sink Huge Storage Unit Improved Targeting Computer > --- WEAPON ----------- Pulse Rifle Heavy Laser > --- INVENTORY -------- Ion Engine Large Matter Pod Improved Terrain Scanner Seismic Detector Seismic Detector Improved Targeting Computer Improved Targeting Computer Improved Targeting Computer Improved Targeting Computer Particle Charger Improved Light Armor Plating Insulated Plating Insulated Plating Insulated Plating Insulated Plating Hardlight Generator Light Assault Rifle Light Assault Rifle Heavy Assault Rifle Rocket Launcher Mining Laser [Rating: 27] Favorites ----------- Power Improved Ion Engine Engine Improved Ion Engine Propulsion Light Treads Treads Light Treads Leg Improved Carbon-fiber Leg Utility Seismic Detector Device Seismic Detector Storage Huge Storage Unit Processor Improved Targeting Computer Weapon Heavy Assault Rifle Energy Gun Heavy Laser Ballistic Gun Heavy Assault Rifle Build | -11 -10 -10 -9 -9 -8 ------- Run | Yrd Mat Min Mat Min Mat Slots Evolved 4 | . . . 2 . 2 Power . | . . . . . . Propulsion 3 | . . . 2 . 1 Utility 1 | . . . . . 1 Weapon . | . . . . . . Parts Attached 29 | 7 2 2 4 . 14 Power 3 | 1 . . 1 . 1 Engine 3 | 1 . . 1 . 1 Core . | . . . . . . Reactor . | . . . . . . Propulsion 11 | 2 . . 3 . 6 Treads 9 | 2 . . 3 . 4 Leg 2 | . . . . . 2 Wheel . | . . . . . . Hover . | . . . . . . Flight . | . . . . . . Utility 5 | 1 2 . . . 2 Device 2 | . 1 . . . 1 Storage 2 | 1 1 . . . . Processor 1 | . . . . . 1 Hackware . | . . . . . . Protection . | . . . . . . Artifact . | . . . . . . Weapon 10 | 3 . 2 . . 5 Energy Gun 4 | 1 . . . . 3 Energy Cannon . | . . . . . . Ballistic Gun 6 | 2 . 2 . . 2 Ballistic Cannon . | . . . . . . Launcher . | . . . . . . Special Weapon . | . . . . . . Impact Weapon . | . . . . . . Slashing Weapon . | . . . . . . Piercing Weapon . | . . . . . . Special Melee Weapon . | . . . . . . Unidentified Prototypes 1 | . . . . . 1 Parts Lost 18 | . . . . . 18 Power 2 | . . . . . 2 Propulsion 10 | . . . . . 10 Utility . | . . . . . . Weapon 6 | . . . . . 6 Highest Loss Streak 8 | . . . . . 8 To Critical Strikes 1 | . . . . . 1 Average Backups 15 | 2 7 17 17 22 22 Power . | . . . . 2 1 Propulsion . | . . . . 2 . Utility 8 | . 4 8 7 9 13 Weapon 5 | 1 2 9 9 9 6 Tool/Special . | . . . . . . Unused Backups 15 | . . . . . 15 Power . | . . . . . . Propulsion . | . . . . . . Utility 12 | . . . . . 12 Weapon 3 | . . . . . 3 Tool/Special . | . . . . . . Average Slot Usage (%) 93 | . 99 100 88 100 90 Engine 11 | . 14 14 11 11 8 Treads 31 | . 28 28 33 44 31 Leg 1 | . . . . . 4 Device 10 | . 13 14 11 11 9 Storage 11 | . 14 14 11 11 9 Processor 3 | . . . . . 8 Energy Gun 3 | . . . . . 9 Ballistic Gun 18 | . 28 28 22 22 8 Peak Build Rating 27 | 6 9 11 15 15 27 Average Rating 14 | 5 7 10 12 15 22 On Entrance 9 | . 6 9 11 15 15 Avg Prop Armor Cover (%) 4 | . . . . . 4 Naked Turns . | . . . . . . Heaviest Build 95 | 13 88 92 94 94 95 Greatest Support 100 | 40 40 40 80 80 100 Greatest Overweight (x) 4 | 1 2 2 2 1 4 Average Overweight (x) . | . . 2 1 1 . Largest Inventory Capacity 25 | 8 25 25 25 25 25 Average Capacity 20 | 7 10 25 25 25 25 Most Carried 25 | 5 17 17 22 23 25 Average Carried 15 | 2 7 17 17 22 22 Final Capacity 25 | 8 25 25 25 25 25 Final Carried 23 | 5 17 17 22 23 20 Class Distribution -------------------- 57% | Mutant 42% | Scavenger-Mutant Dominant Class ---------------- Mutant | -10/Materials Mutant | -10/Mines Mutant | -9/Materials Scavenger-Mutant | -9/Mines Scavenger-Mutant | -8/Materials Resources | -11 -10 -10 -9 -9 -8 ----------- Run | Yrd Mat Min Mat Min Mat Matter Collected 940 | 209 80 . 134 . 517 Remotely . | . . . . . . Salvage Created 1387 | 86 80 . 228 . 993 Parts 76 | 6 6 . 29 . 35 Haulers Intercepted 3 | . 1 . 1 . 1 Recyclers Shooed 3 | . . . 1 . 2 Parts Field Recycled . | . . . . . . Retrieved Matter . | . . . . . . Parts Self-Destructed . | . . . . . . Prevented . | . . . . . . Parts Restored . | . . . . . . Kills | -11 -10 -10 -9 -9 -8 ------- Run | Yrd Mat Min Mat Min Mat Combat Hostiles Destroyed 24 | . 1 . 7 . 16 Guns 24 | . 1 . 7 . 16 Classes Destroyed 9 | 2 2 . 3 . 2 Tunneler 2 | 2 . . . . . Hauler 3 | . 1 . 1 . 1 Recycler 2 | 1 . . . . 1 Mechanic 1 | . . . . . 1 Watcher 2 | . . . 2 . . Swarmer 6 | . . . 6 . . Grunt 8 | . 1 . . . 7 Sentry 7 | . . . 1 . 6 Specialist 3 | . . . . . 3 Best Kill Streak 5 | 2 1 . 5 . 4 Combat Bots Only 4 | . 1 . 4 . 3 Max Kills in Single Turn 1 | 1 1 . 1 . 1 Gunslinging . | . . . . . . Exploded . | . . . . . . Melee . | . . . . . . Uniques/NPCs Destroyed . | . . . . . . Combat | -11 -10 -10 -9 -9 -8 -------- Run | Yrd Mat Min Mat Min Mat Hostile Shots Fired 214 | . 4 . 30 . 180 Missed 44 | . . . 8 . 36 Hits 170 | . 4 . 22 . 144 Projectile 170 | . 4 . 22 . 144 Critical Strikes 8 | . . . . . 8 Damage Taken 2917 | . 43 . 192 . 2682 Core 619 | . . . 57 . 562 Absorbed by Shields . | . . . . . . Core Remaining (%) 95 | 100 . 100 . 85 . Volleys Fired 129 | 8 7 1 19 . 94 Largest 2 | 2 2 2 2 . 2 Hottest 132 | 40 40 46 46 . 132 Shots Fired 250 | 16 14 2 38 . 180 Gun 250 | 16 14 2 38 . 180 Cannon . | . . . . . . Launcher . | . . . . . . Special . | . . . . . . Kinetic 153 | 16 14 2 38 . 83 Thermal 97 | . . . . . 97 Explosive . | . . . . . . Electromagnetic . | . . . . . . Robot Hit Streak 19 | 6 8 . 8 . 19 Robot Miss Streak 3 | 2 1 3 2 . 3 Penetration Max . | . . . . . . Secondary Targets 2 | . . . . . 2 Max Gunslinging Chain 1 | . . . . . 1 Shots Hit Robots 190 | 10 11 . 25 . 144 Core Hits 64 | 6 5 . 11 . 42 Critical Kills . | . . . . . . Critical Parts Destroyed . | . . . . . . Critical Strikes 5 | . . . . . 5 Burn 5 | . . . . . 5 Melee Attacks . | . . . . . . Impact . | . . . . . . Slashing . | . . . . . . Piercing . | . . . . . . Sneak Attacks . | . . . . . . Combat Hostiles . | . . . . . . Follow-up Attacks . | . . . . . . Damage Inflicted 2984 | 81 82 . 370 . 2451 Guns 2978 | 81 82 . 370 . 2445 Cannons . | . . . . . . Explosions . | . . . . . . Melee . | . . . . . . Ramming 6 | . . . . . 6 Kinetic 1452 | 81 82 . 370 . 919 Thermal 1526 | . . . . . 1526 Explosive . | . . . . . . Electromagnetic . | . . . . . . Impact . | . . . . . . Slashing . | . . . . . . Piercing . | . . . . . . Highest Corruption . | . . . . . . Average Corruption . | . . . . . . Corruption Purged . | . . . . . . Corruption Blocked . | . . . . . . Overload Shots . | . . . . . . Overflow Damage . | . . . . . . Projectiles . | . . . . . . Explosions . | . . . . . . Melee . | . . . . . . Knockbacks . | . . . . . . Impact . | . . . . . . Kinetic . | . . . . . . Secondary . | . . . . . . Self-Inflicted Damage . | . . . . . . Shots . | . . . . . . Rammed 2 | . . . . . 2 Targets Rammed 2 | . . . . . 2 Kicked . | . . . . . . Crushed . | . . . . . . Highest Temperature 323 | . 6 . . . 323 Average Temperature 89 | . 6 . . . 91 Received Heat Transfer 951 | . 24 . . . 927 Effects 1 | . . . . . 1 Damage (minor) 1 | . . . . . 1 Siege Activations . | . . . . . . Martial Activations . | . . . . . . Shielding Activations . | . . . . . . Robots Disrupted . | . . . . . . Combat Hostiles . | . . . . . . Robots Corrupted . | . . . . . . Combat Hostiles . | . . . . . . Parts Fried . | . . . . . . Impact Corruptions . | . . . . . . Robots Melted . | . . . . . . Combat Hostiles . | . . . . . . Parts Melted 8 | . . . . . 8 Heat Transferred 3404 | . . . . . 3404 Parts Sabotaged . | . . . . . . Parts Stolen . | . . . . . . Parts Stripped . | . . . . . . Power Chain Reactions . | . . . . . . Alert | -11 -10 -10 -9 -9 -8 ------- Run | Yrd Mat Min Mat Min Mat Maximum Alert Level . | . . . . . . Low Security (%) 100 | 100 100 100 100 100 100 Level 1 . | . . . . . . Level 2 . | . . . . . . Level 3 . | . . . . . . Level 4 . | . . . . . . Level 5 . | . . . . . . High Security . | . . . . . . Max Security . | . . . . . . Peak Influence 194 | 10 20 . 144 27 194 Initial 27 | . . . . 27 . Average 49 | 1 1 . 69 7 94 Influence Increases 797 | 15 27 . 220 . 535 Destroy 0b10 Robot/C 480 | . 20 . 140 . 320 Destroy 0b10 Robot/NC 50 | 15 5 . 15 . 15 Destroy Leader 120 | . 2 . 26 . 92 Successful Hack 11 | . . . 9 . 2 Disable Machine 15 | . . . 15 . . Destroy Structure 1 | . . . . . 1 Lose Combat Pursuer 120 | . . . 15 . 105 Influence Decreases 651 | 15 27 . 149 71 389 Entered New Map 44 | . . . . 44 . Time Decay 427 | 15 27 . 149 27 209 Lost Part 180 | . . . . . 180 Squads Dispatched 8 | . 1 . . . 7 Investigation . | . . . . . . Extermination . | . . . . . . Reinforcement 5 | . 1 . . . 4 Assault . | . . . . . . Garrison 3 | . . . . . 3 Intercept . | . . . . . . Searches Triggered . | . . . . . . Construction Impeded . | . . . . . . Haulers Reinforced . | . . . . . . Active Scanning Responses . | . . . . . . Cargo Convoy Interrupts . | . . . . . . Stealth | -11 -10 -10 -9 -9 -8 --------- Run | Yrd Mat Min Mat Min Mat Distress Signals 6 | . . . 3 . 3 Communications Jammed . | . . . . . . Distress Signals . | . . . . . . Times Spotted 46 | . 4 . 13 . 29 Peak Tracking Total 6 | . 1 . 6 . 6 Tactical Retreats 6 | . . . 1 . 5 Traps | -11 -10 -10 -9 -9 -8 ------- Run | Yrd Mat Min Mat Min Mat Traps Triggered . | . . . . . . Indirectly . | . . . . . . Trap Hack Attempts . | . . . . . . Triggered . | . . . . . . Disarmed . | . . . . . . Reprogrammed . | . . . . . . Reused . | . . . . . . Traps Extracted . | . . . . . . Installed . | . . . . . . Triggered . | . . . . . . Machines | -11 -10 -10 -9 -9 -8 ---------- Run | Yrd Mat Min Mat Min Mat Machines Disabled 1 | . . . 1 . . Max in Single Turn 1 | . . . 1 . . Machines Repaired . | . . . . . . Machines Dismantled . | . . . . . . Machines Sabotaged . | . . . . . . Overloaded Fab Kills . | . . . . . . Hacking | -11 -10 -10 -9 -9 -8 --------- Run | Yrd Mat Min Mat Min Mat Machines Accessed 5 | . 1 . 2 . 2 Terminals 3 | . 1 . 1 . 1 Fabricators . | . . . . . . Repair Stations . | . . . . . . Recycling Units . | . . . . . . Scanalyzers 2 | . . . 1 . 1 Garrison Access . | . . . . . . Total Hacks 13 | . 4 . 5 . 4 Successful 3 | . . . 2 . 1 Failed 8 | . 4 . 2 . 2 Catastrophic . | . . . . . . Database Lockouts 2 | . . . 1 . 1 Manual 2 | . . . . . 2 Terminals 8 | . 4 . 2 . 2 Fabricators . | . . . . . . Repair Stations . | . . . . . . Recycling Units . | . . . . . . Scanalyzers 5 | . . . 3 . 2 Garrison Access . | . . . . . . Terminal Hacks 1 | . . . 1 . . Registered Components 1 | . . . 1 . . Fabricator Hacks . | . . . . . . Repair Station Hacks . | . . . . . . Recycling Unit Hacks . | . . . . . . Scanalyzer 2 | . . . 1 . 1 Retrieve Study 2 | . . . 1 . 1 Garrison Access Hacks . | . . . . . . Unauthorized Hacks . | . . . . . . Terminals . | . . . . . . Fabricators . | . . . . . . Repair Stations . | . . . . . . Recycling Units . | . . . . . . Scanalyzers . | . . . . . . Garrison Access . | . . . . . . Data Cores Recovered . | . . . . . . Used . | . . . . . . Hacking Detections 4 | . 1 . 1 . 2 Full Trace Events . | . . . . . . Feedback Events . | . . . . . . Feedback Blocked . | . . . . . . Robot Schematics Acquired . | . . . . . . Robots Built . | . . . . . . Authchips . | . . . . . . Time . | . . . . . . Total Robot Build Rating . | . . . . . . Part Schematics Acquired . | . . . . . . Parts Built . | . . . . . . Authchips . | . . . . . . Time . | . . . . . . Total Part Build Rating . | . . . . . . Part Studies Acquired 2 | . . . 1 . 1 Parts Repaired . | . . . . . . Time . | . . . . . . Parts Recycled . | . . . . . . Recycled Matter . | . . . . . . Retrieved Matter . | . . . . . . Retrieved Components . | . . . . . . Parts Scanalyzed . | . . . . . . Part Schematics Acquired . | . . . . . . Parts Damaged . | . . . . . . Bothacking | -11 -10 -10 -9 -9 -8 ------------ Run | Yrd Mat Min Mat Min Mat Used RIF Installer . | . . . . . . Robots Hacked . | . . . . . . Non-combat . | . . . . . . Combat . | . . . . . . Robot Hacks Applied . | . . . . . . Relay Couplers Released . | . . . . . . Fabnet Peak Effective % . | . . . . . . Robots Rewired . | . . . . . . Allies Hacked . | . . . . . . Hacks Repelled . | . . . . . . Allies | -11 -10 -10 -9 -9 -8 -------- Run | Yrd Mat Min Mat Min Mat Total Allies . | . . . . . . Largest Group . | . . . . . . Highest-Rated Group . | . . . . . . Highest-Rated Ally . | . . . . . . Total Orders . | . . . . . . Ally Attacks . | . . . . . . Total Damage . | . . . . . . Kills . | . . . . . . Allies Corrupted . | . . . . . . Allies Melted . | . . . . . . Intel | -11 -10 -10 -9 -9 -8 ------- Run | Yrd Mat Min Mat Min Mat Active Infowar (turns) 1451 | . 447 72 393 129 410 Seismic 1451 | . 447 72 393 129 410 Robot Analysis Total . | . . . . . . Derelict Logs Recovered . | . . . . . . Drone Launches . | . . . . . . Drone Recoveries . | . . . . . . Exploration | -11 -10 -10 -9 -9 -8 ------------- Run | Yrd Mat Min Mat Min Mat Turns Passed 1832 | 122 467 72 393 129 649 Spaces Moved 589 | 56 147 17 147 65 157 Core 4 | 4 . . . . . Treads 585 | 52 147 17 147 65 157 Legs . | . . . . . . Wheels . | . . . . . . Hover . | . . . . . . Flight . | . . . . . . Fastest Speed 50 | 50 160 320 200 200 160 Average Speed 195 | 154 179 320 219 200 185 Slowest Speed 320 | 160 320 320 320 200 320 Overloaded Moves . | . . . . . . Propulsion Burnouts . | . . . . . . Robots Hopped . | . . . . . . Potential Cave-ins . | . . . . . . Cave-ins Triggered . | . . . . . . Exploration Rate (%) 15 | 4 25 9 20 15 17 Regions Visited 5 Branch Regions 2 Pre-discovered Areas . | . . . . . . Known Exits Taken . | . . . . . . Unknown Exits Taken 5 | 1 1 1 1 1 . Scrap Searched . | . . . . . . Spaces Dug . | . . . . . . Terrain Destroyed . | . . . . . . Melee . | . . . . . . Projectile . | . . . . . . AOE . | . . . . . . Terrain Rammed . | . . . . . . Walls Destroyed . | . . . . . . Machines Disabled . | . . . . . . Actions | -11 -10 -10 -9 -9 -8 --------- Run | Yrd Mat Min Mat Min Mat Total 1026 | 75 340 33 178 65 335 Wait 237 | . 171 14 4 . 48 Move 584 | 55 146 16 146 64 157 Hop . | . . . . . . Pick Up 31 | 5 12 . 4 1 9 Fast Attach 16 | 6 1 . 2 . 7 Attach 10 | . 1 . . . 9 Detach 2 | . 1 . . . 1 Swap 7 | 1 1 2 2 . 1 Drop 8 | . . . 1 . 7 Fire 129 | 8 7 1 19 . 94 Melee . | . . . . . . Ram . | . . . . . . Kick . | . . . . . . Crush 2 | . . . . . 2 Escape Stasis . | . . . . . . Rewire . | . . . . . . Trap . | . . . . . . Miscellaneous . | . . . . . . Route ------- -11/Scrapyard -10/Materials -10/Mines -9/Materials -9/Mines -8/Materials History --------- Turn | Location | Event 42 | -11/Scrapyard | Discovered new exit (range 14) 123 | -11/Scrapyard | Entered Materials 316 | -10/Materials | Build established: Mutant 503 | -10/Materials | Discovered new exit (range 16) 590 | -10/Materials | Entered Mines 613 | -10/Mines | Discovered new exit (range 11) 662 | -10/Mines | Entered Materials 662 | -9/Materials | Evolved 2 slots: Propulsion x2 691 | -9/Materials | Central database locked down 1039 | -9/Materials | Discovered new exit (range 9) 1055 | -9/Materials | Entered Mines 1062 | -9/Mines | Received a Rocket Launcher from a helpful Derelict 1170 | -9/Mines | Discovered new exit (range 8) 1184 | -9/Mines | Entered Materials 1184 | -8/Materials | Evolved 2 slots: Propulsion x1, Utility x1 1268 | -8/Materials | Build established: Scavenger-Mutant 1347 | -8/Materials | Garrison activated, responded to threat 1476 | -8/Materials | Lost 5 parts (3n2w) 1634 | -8/Materials | Central database locked down 1755 | -8/Materials | Core integrity fell below 50% 1821 | -8/Materials | Core integrity fell below 20% 1833 | -8/Materials | Destroyed by H-61 Shepherd with Heavy Assault Cannon Last Messages --------------- 01800_ Hvy. Assault Rifle destroyed. 01801_ R-06 Scavenger collects Imp. Carbon-fiber Leg. 01801_ X-62 Marksman destroyed. 01805_ K-01 Serf collects debris. 01807_ M-13 Machinist destroyed. 01807_ K-01 Serf collects debris. 01816_ K-01 Serf destroyed. 01817_ K-01 Serf collects debris. 01817_ Y-45 Defender destroyed. 01820_ K-01 Serf collects debris. 01820_ H-61 Shepherd calls for reinforcements. 01820_ ALERT: Hostile activity reported, dispatching reinforcements to area. 01820_ Hvy. Laser destroyed. 01824_ K-01 Serf collects debris. 01829_ Imp. Ion Engine destroyed. 01831_ Adv. Beam Rifle destroyed. 01831_ Imp. Carbon-fiber Leg destroyed. 01831_ K-01 Serf collects debris. Map ----- +----------------------------------------------------+ | ??????????????# #???????????# ??? | | ??????????????# #???????????# """ "??? | | ??????????????# #????##???###+## """???????? | | ??????????????# ##### ##### # """?? ???? | | ??????????????# ! # # "" #? ^ ???? | | ??????????????# %# [ # Y" #? ??? | | ??????????????# # ===# "" #?? ??? | | ??????????????# # ===# #?? ?? | | ??????????????# # "" ===# # ?? | | ??????????????# + S"" # + ! ?? | | ??????????????# # "" ! #[ ! # ######??????? | | ??????????##??# # !# #?? #???????????? | | ?????? ?? ?## ################???????????????? | | ???? ? ""? # ###########???????????????????? | | ???# "T" # ?????????????????? | | ???# + ?????????????????? | | ???# ]] | # ?????????????????? | | ???# ]] # !##########+#??????????????????? | | ???# ]]? ?## ![##??# ???????????????????? | | ??# ?? ???#![%#???# ???????????????????? | | ??###???###???# [ #???# """""""??????????????????? | | ??????????????# #???# """"""" #????????????????? | | ??????????????# !##### """"""" #????????????????? | | ??????????????# *%! %+%"%%"""" #????????????????? | | ??????????????# #####="%H%%"" #????????????????? | | ??????????????# #???#%%@k%*!!=#????????????????? | | ??????????????# #???###########????????????????? | | ??????????????# #??????????????????????????????? | | ??????????????# #??????????????????????????????? | | ??????????????# #??????????????????????????????? | | ??????????????# #??????????????????????????????? | | ??????????????# #??????????????????????????????? | | ??????????????# #??????????????????????????????? | | ??????????????# #??????????????????????????????? | | ??????????????# #??????????????????????????????? | | ??????????????# ???????????????????????????????? | | ??????????????# ???????????????????????????????? | | ??????????????? ???????????????????????????????? | | ?????????????????????????????????????????????????? | | ?????????????????????????????????????????????????? | | ?????????????????????????????????????????????????? | | ?????????????????????????????????????????????????? | | ?????????????????????????????????????????????????? | | ?????????????????????????????????????????????????? | | ?????????????????????????????????????????????????? | | ?????????????????????????????????????????????????? | | ?????????????????????????????????????????????????? | | ?????????????????????????????????????????????????? | | ?????????????????????????????????????????????????? | | ?????????????????????????????????????????????????? | +----------------------------------------------------+ Best States ------------- Heat Dissipation 45 Energy Generation 12 Energy Capacity 265 Matter Stores 300 Matter Capacity 300 Sight Range 16 Terrain Scan Density 10 Evasion (%) 40 Targeting Accuracy 6 Recoil Reduction 5 Item Schematics ----------------- None Robot Schematics ------------------ None Fabricated ------------ Nothing Repaired ---------- Nothing Studied --------- Lgt. Treads | -9/Materials | Hacked Pulse Rifle | -8/Materials | Hacked Alien Tech Used ----------------- None Achievements -------------- None Challenges ------------ None Game ------ Seed RingLightpackMaul Manual? 0 Play Time 00:12:57 Cumulative 265.5 hours Start 2026.08.17 @ 16:54:18 End 2026.08.17 @ 17:07:07 Sessions 1 Manual Loads 0 Difficulty Rogue Special Mode None Game No. 345 Rogue 345 Adventurer 0 Explorer 0 Win Type - Total 6 Types 5/0/0/1/0/0/0/0/0/0 Lore% 79 Gallery% 66 Achievement% 54 Wizard Run 0 Options --------- Layout 2 ASCII 0 Keyboard 0 Movement Mouse Keybinds 0 Fullscreen 1 Font 24/Smallcaps Map View 50x44 Zoom Use 0% Tactical HUD 1 Map Filters NONE Filters NONE Steam 1 RUN: be81cc45-a18f-494d-b09c-28dcbe03ee13